bitfinex-derivatives/quotes_SOLF0:USTF0_20240830
["timestamp","ask_amount","ask_price","bid_price","bid_amount"]
[1725045107410,7.338,136.09,136.07,7.47797636]
[1725045107605,0.05625039,136.1,136.07,3.80327636]
[1725045108613,3.70226743,136.1,136.07,0.05474609]
[1725045108811,0.05625039,136.1,136.07,0.05474609]
[1725045109318,3.6744,136.08,136.07,0.05474609]
[1725045109911,7.43791293,136.08,136.07,0.05474609]
[1725045110112,3.6744,136.08,136.07,0.05474609]
[1725045110410,7.30340988,136.08,136.07,0.05474609]
[1725045110811,3.6755,136.04,135.99,38.8499633]
[1725045111213,3.6755,136.04,136.01,3.6762]
[1725045111716,3.73081579,136.04,136.01,3.72665299]
[1725045111907,3.73081579,136.04,136.02,3.676]
[1725045113705,0.05531579,136.04,136.02,3.676]
[1725045114816,0.05531579,136.04,136.01,0.05045299]
[1725045115614,0.05531579,136.04,136.02,3.6759]
[1725045116017,0.05531579,136.04,136.01,35.30045299]
[1725045116315,0.05531579,136.04,136.03,3.6758]
[1725045122016,11.0126,136.08,136.05,3.6752]
[1725045122418,7.338,136.16,136.06,35.25]
[1725045122716,7.338,136.16,136.06,38.8392641]
[1725045122924,7.338,136.16,136.02,4.1164]
[1725045122925,3.6736,136.11,136.1,0.05429345]
[1725045123119,7.338,136.12,136.02,4.1164]
[1725045123316,7.338,136.12,136.05,3.675]
[1725045123513,3.6743,136.09,136.05,3.675]
[1725045124217,0.05348885,136.08,136.06,0.05399173]
[1725045125620,3.72808885,136.08,136.06,0.05399173]
[1725045127321,0.05348885,136.08,136.06,3.72889173]
[1725045127523,0.05348885,136.08,136.06,0.05399173]
[1725045128015,3.6747,136.07,136.06,0.05399173]
[1725045131213,3.72808885,136.08,136.06,0.05399173]
[1725045131917,0.05348885,136.08,136.07,3.6747]
[1725045132116,0.05348885,136.08,136.06,0.05399173]
[1725045132617,3.72788885,136.08,136.06,0.05399173]
[1725045133524,0.05348885,136.08,136.06,3.72879173]
[1725045134120,0.05348885,136.08,136.07,3.6747]
[1725045135721,7.338,136.13,136.11,3.6736]
[1725045136319,1.4381,136.17,136.09,28.21]
[1725045136530,7.338,136.16,136.11,28.21]
[1725045136729,7.338,136.16,136.05,7.3504]
[1725045136730,0.05189936,136.15,136.12,0.05207347]
[1725045136934,3.72579493,136.15,136.12,3.72943792]
[1725045137320,0.05309493,136.15,136.12,0.05603792]
[1725045137527,0.05309493,136.15,136.13,3.6728]
[1725045138433,0.05309493,136.15,136.12,3.72923792]
[1725045138434,3.72569493,136.15,136.12,3.72923792]
[1725045138633,0.05309493,136.15,136.12,0.05603792]
[1725045139131,3.6731,136.13,136.12,0.05603792]
[1725045139325,35.548,136.14,136.08,3.6743]
[1725045139534,35.548,136.14,136.06,31.89233565]
[1725045139920,35.548,136.14,136.05,28.21]
[1725045140135,39.25714432,136.14,136.05,28.21]
[1725045140333,0.05027162,136.11,136.08,0.04769973]
[1725045140829,3.6742,136.09,136.08,0.04769973]
[1725045141133,28.21,136.1,136.02,2.7814]
[1725045141326,7.338,136.09,136.02,2.7814]
[1725045141723,35.548,136.07,135.98,1.3284]
[1725045141928,35.548,136.07,136.0,3.6764]
[1725045141929,3.6756,136.04,136.0,3.6764]
[1725045142133,3.6756,136.04,135.98,5.00375806]
[1725045142134,3.6756,136.04,135.98,1.3284]
[1725045142332,0.05305474,136.03,136.01,0.04951439]
[1725045142533,0.05305474,136.03,136.01,3.63558304]
[1725045142728,0.05305474,136.03,136.01,0.04951439]
[1725045142926,0.05305474,136.03,136.02,3.6761]
[1725045144731,7.338,136.07,136.02,35.29]
[1725045144932,7.338,136.12,136.02,35.29]
[1725045145125,7.338,136.1,136.01,6.37888077]
[1725045145327,7.338,136.1,136.0,35.29]
[1725045145328,35.29,136.08,136.0,35.29]
[1725045145530,3.6751,136.06,136.01,3.6672301]
[1725045145729,3.68670537,136.07,136.03,3.6755]
[1725045145935,0.04884734,136.06,136.04,0.05353497]
[1725045147337,3.72384734,136.06,136.04,0.05353497]
[1725045147538,0.04884734,136.06,136.04,0.05353497]
[1725045147932,3.6753,136.05,136.04,0.05353497]
[1725045148437,3.72394734,136.06,136.04,0.05353497]
[1725045150041,0.04884734,136.06,136.04,3.72893497]
[1725045151741,0.04884734,136.06,136.05,3.6753]
[1725045152336,7.338,136.1,136.08,3.6744]
[1725045153554,7.39451067,136.1,136.08,3.72444041]
[1725045154737,0.05651067,136.1,136.09,3.6742]
[1725045161541,0.05651067,136.1,136.08,0.05004041]
[1725045162149,3.73051067,136.1,136.08,3.72444041]
[1725045162840,3.6742,136.09,136.08,0.05004041]
[1725045165547,7.352,136.09,136.0,3.58638935]
[1725045165851,7.352,136.07,135.99,28.2]
[1725045166052,3.6754,136.05,136.0,3.62810911]
[1725045166548,0.04834305,136.04,136.01,0.0506746]
[1725045166753,3.72394305,136.04,136.01,0.0506746]
[1725045166949,0.04834305,136.04,136.02,3.676]
[1725045168453,3.72384305,136.04,136.02,3.676]
[1725045168851,3.72384305,136.04,136.01,3.7268746]
[1725045169050,3.6761,136.02,136.01,0.0506746]
[1725045175151,3.6771,135.99,135.96,3.6776]
[1725045175351,35.552,136.03,135.95,1.3713]
[1725045175749,3.6772,135.98,135.95,5.0491]
[1725045175977,3.68217909,135.99,135.93,28.2]
[1725045176149,35.552,136.03,135.93,28.2]
[1725045176351,3.72416387,135.97,135.95,0.05027038]
[1725045176547,3.73243408,135.97,135.95,0.05027038]
[1725045176752,3.6777,135.96,135.95,0.05027038]
[1725045177160,35.60703408,135.97,135.9,1.4247]
[1725045177354,35.60703408,135.97,135.87,34.69005408]
[1725045177355,3.6789,135.92,135.87,33.31685408]
[1725045177559,1.3335,135.96,135.87,33.31685408]
[1725045177762,3.6784,135.94,135.88,3.6797]
[1725045178168,0.04779701,135.92,135.9,0.03088434]
[1725045178856,0.04779701,135.92,135.91,3.679]
[1725045179167,0.04779701,135.92,135.9,0.03088434]
[1725045179555,0.04779701,135.92,135.91,3.679]
[1725045180553,0.04779701,135.92,135.9,0.03088434]
[1725045180759,28.2,135.91,135.77,7.3654]
[1725045181058,7.39979701,135.92,135.72,13.61219809]
[1725045181059,35.552,135.89,135.8,2.6726]
[1725045181257,28.2,135.87,135.8,2.6726]
[1725045181458,39.17287992,135.89,135.8,2.6726]
[1725045181865,0.05115462,135.86,135.83,3.681]
[1725045182158,0.05115462,135.86,135.81,35.33]
[1725045182357,0.05115462,135.86,135.85,3.6807]
[1725045183374,7.352,135.88,135.87,3.6801]
[1725045183665,38.0714,135.95,135.85,36.671]
[1725045183666,7.352,135.94,135.85,36.671]
[1725045183863,7.352,135.93,135.88,35.33]
[1725045184076,7.352,135.93,135.92,3.6787]
[1725045184464,0.05329039,135.94,135.91,0.05115462]
[1725045184777,0.05329039,135.94,135.93,3.6785]
[1725045185365,35.33,136.03,135.93,35.33]
[1725045185569,7.352,136.02,135.93,35.33]
[1725045185864,11.04829193,136.02,135.97,3.6773]
[1725045186264,11.04829193,136.02,135.98,0.04816657]
[1725045186496,7.352,136.0,135.98,0.04816657]
[1725045187072,7.352,136.0,135.99,3.6769]
[1725045187873,7.352,136.0,135.98,0.04816657]
[1725045187874,0.04834358,136.01,136.0,3.6766]
[1725045189170,82.2018241,136.04,136.03,3.6758]
[1725045189375,7.352,136.05,135.98,35.33]
[1725045189679,7.352,136.05,135.98,39.09186427]
[1725045189881,7.352,136.05,136.03,3.6756]
[1725045190074,7.352,136.05,135.98,39.09186427]
[1725045190276,0.04903999,136.03,136.0,0.05128399]
[1725045190871,0.04903999,136.03,136.01,3.6763]
[1725045191078,0.04903999,136.03,136.0,0.05128399]
[1725045191274,0.04903999,136.03,136.01,3.6763]
[1725045191483,0.04903999,136.03,136.0,0.05128399]
[1725045191980,0.04903999,136.03,136.01,3.6761]
[1725045192780,0.04903999,136.03,136.0,0.05128399]
[1725045193378,3.72503999,136.03,136.0,0.05128399]
[1725045194177,0.04903999,136.03,136.0,3.72788399]
[1725045194383,0.04903999,136.03,136.0,0.05128399]
[1725045194572,0.04903999,136.03,135.99,3.56553819]
[1725045194811,0.04903999,136.03,135.96,35.33]
[1725045195380,0.04903999,136.03,136.0,3.6764]
[1725045195580,0.04903999,136.03,136.0,3.73227243]
[1725045195782,3.6762,136.02,136.0,0.05587243]
[1725045195986,42.73103999,136.03,136.0,0.05587243]
[1725045196284,35.33,136.01,135.94,1.441]
[1725045197084,3.6771,135.99,135.94,1.441]
[1725045197288,35.33,136.01,135.94,1.441]
[1725045197483,0.05109137,135.99,135.96,0.04563217]
[1725045198085,0.05109137,135.99,135.97,3.6772]
[1725045199185,0.05109137,135.99,135.96,3.72323217]
[1725045199886,35.38109137,135.99,135.81,7.3631]
[1725045200085,35.33,135.99,135.87,2.7557]
[1725045200290,3.6781,135.95,135.87,2.7557]
[1725045200591,3.6781,135.95,135.88,35.33]
[1725045201110,0.04844753,135.93,135.91,3.6788]
[1725045201285,0.04844753,135.93,135.88,39.09426016]
[1725045201481,0.04844753,135.93,135.91,3.6789]
[1725045202388,0.04844753,135.93,135.92,3.6788]
[1725045203580,7.28700834,135.97,135.94,3.678]
[1725045204235,3.6777,135.96,135.93,3.6784]
[1725045204691,0.05035456,135.96,135.93,0.04844753]
[1725045205290,0.05035456,135.96,135.94,3.678]
[1725045205489,0.05035456,135.96,135.93,0.04844753]
[1725045206388,7.352,136.01,135.93,0.04844753]
[1725045206692,7.352,136.01,135.98,3.6769]
[1725045206693,11.0284,136.01,135.98,3.6769]
[1725045207089,7.352,136.02,135.94,1.3184]
[1725045207292,3.6767,136.0,135.97,3.6773]
[1725045207491,0.05518846,136.0,135.97,3.72957507]
[1725045207887,3.677,135.99,135.97,3.72957507]
[1725045208487,3.73198846,136.0,135.97,3.72957507]
[1725045209192,3.6771,135.98,135.97,0.05227507]
[1725045209790,3.677,135.99,135.97,0.05227507]
[1725045210894,3.6769,135.99,135.97,0.05227507]
[1725045211542,11.08388846,136.0,135.97,0.05227507]
[1725045212291,11.08388846,136.0,135.97,3.72967507]
[1725045212994,3.677,135.99,135.97,0.05227507]
[1725045213690,0.05518846,136.0,135.97,0.05227507]
[1725045214503,7.40718846,136.0,135.97,0.05227507]
[1725045215195,3.677,135.99,135.97,0.05227507]
[1725045215404,0.05518846,136.0,135.97,0.05227507]
[1725045216495,3.677,135.99,135.97,0.05227507]
[1725045216690,0.05518846,136.0,135.97,0.05227507]
[1725045217498,0.05518846,136.0,135.99,3.6769]
[1725045225408,0.05518846,136.0,135.98,5.0546]
[1725045225705,0.05518846,136.0,135.98,1.3776]
[1725045226407,0.05518846,136.0,135.99,3.6769]
[1725045226603,7.352,136.04,135.99,35.33]
[1725045226803,3.76304955,136.07,135.99,35.33]
[1725045227007,3.76304955,136.07,135.99,36.7542]
[1725045227211,3.6752,136.06,136.03,3.6756]
[1725045227393,7.30481329,136.06,136.03,3.6756]
[1725045227597,3.62961329,136.06,135.99,36.7542]
[1725045227798,0.04817753,136.04,136.02,3.6758]
[1725045228403,0.04817753,136.04,136.02,3.6761]
[1725045229093,0.04817753,136.04,136.01,3.72908578]
[1725045229704,3.72377753,136.04,136.01,0.05288578]
[1725045230401,3.6759,136.03,136.01,0.05288578]
[1725045230603,0.04817753,136.04,136.01,0.05288578]
[1725045231399,3.72377753,136.04,136.01,3.72908578]
[1725045231602,0.04817753,136.04,136.01,0.05288578]
[1725045232205,0.04817753,136.04,136.02,3.676]
[1725045233901,0.04817753,136.04,136.03,3.6758]
[1725045234508,0.04817753,136.04,136.02,3.6759]
[1725045235536,0.04817753,136.04,136.03,3.6758]
[1725045235810,11.07627712,136.1,136.03,28.22]
[1725045236112,11.07627712,136.1,136.07,3.6746]
[1725045236800,11.13266799,136.1,136.07,3.72106546]
[1725045237106,14.80666799,136.1,136.07,3.72106546]
[1725045237504,14.80666799,136.1,136.08,3.6743]
[1725045237505,3.78066799,136.1,136.08,3.6743]
[1725045237807,0.05639087,136.1,136.07,0.04646546]
[1725045238201,3.73029087,136.1,136.07,3.72106546]
[1725045239001,3.6742,136.09,136.07,0.04646546]
[1725045239200,28.22,136.09,136.07,0.04646546]
[1725045239397,7.352,136.08,135.99,28.22]
[1725045239602,3.6754,136.05,136.02,3.6759]
[1725045240301,7.352,136.08,136.01,3.6762]
[1725045240510,0.04868338,136.06,136.03,0.04787889]
[1725045240902,3.6754,136.05,136.03,0.04787889]
[1725045242404,3.6755,136.04,136.03,0.04787889]
[1725045242604,0.04868338,136.06,136.03,0.04787889]
[1725045243907,0.04868338,136.06,136.04,3.6753]
[1725045244711,0.04868338,136.06,136.03,0.04787889]
[1725045245609,0.04868338,136.06,136.04,3.6754]
[1725045246309,0.04868338,136.06,136.04,3.6755]
[1725045247609,0.04868338,136.06,136.03,0.04787889]
[1725045248206,0.04868338,136.06,136.03,1.37737889]
[1725045248911,0.04868338,136.06,136.04,3.6755]
[1725045249612,0.04868338,136.06,136.03,3.72357889]
[1725045249813,0.04868338,136.06,136.03,0.04787889]
[1725045250210,0.04868338,136.06,136.03,3.72347889]
[1725045250609,0.04868338,136.06,136.03,0.04787889]
[1725045251410,3.72368338,136.06,136.03,0.04787889]
[1725045252509,0.04868338,136.06,136.03,0.04787889]
[1725045253015,0.04868338,136.06,136.03,3.72357889]
[1725045253212,0.04868338,136.06,136.03,0.04787889]
[1725045254617,3.72378338,136.06,136.03,3.72357889]
[1725045254914,3.72378338,136.06,136.03,0.04787889]
[1725045256014,0.04868338,136.06,136.03,3.72347889]
[1725045256215,0.04868338,136.06,136.03,0.04787889]
[1725045257021,0.04868338,136.06,136.04,3.6755]
[1725045257409,0.04868338,136.06,136.03,0.04787889]
[1725045257808,0.04868338,136.06,136.03,3.72347889]
[1725045259714,3.72378338,136.06,136.03,3.72347889]
[1725045260212,3.6753,136.05,136.03,0.04787889]
[1725045261413,3.72378338,136.06,136.03,3.72367889]
[1725045261615,0.04868338,136.06,136.03,0.04787889]
[1725045262014,3.6753,136.05,136.03,0.04787889]
[1725045262613,3.72378338,136.06,136.03,3.72357889]
[1725045265221,0.04868338,136.06,136.04,3.6755]
[1725045266423,3.72388338,136.06,136.03,0.04787889]
[1725045267021,0.04868338,136.06,136.04,3.6755]
[1725045268421,3.72368338,136.06,136.03,3.72347889]
[1725045268817,3.72368338,136.06,136.03,0.04787889]
[1725045269214,3.72368338,136.06,136.04,3.6754]
[1725045270427,0.04868338,136.06,136.05,3.6753]
[1725045272212,0.04868338,136.06,136.04,3.6754]
[1725045272814,0.04868338,136.06,136.03,2.78287889]
[1725045273124,0.04868338,136.06,136.03,6.45857889]
[1725045273316,0.04868338,136.06,136.03,2.78287889]
[1725045273517,3.72388338,136.06,136.04,3.6755]
[1725045275718,0.04868338,136.06,136.05,3.6753]
[1725045276523,0.04868338,136.06,136.04,3.6755]
[1725045276729,0.04868338,136.06,136.03,28.26787889]
[1725045278351,0.04868338,136.06,136.05,3.6753]
[1725045280831,0.04868338,136.06,136.04,3.6755]
[1725045281330,0.04868338,136.06,136.05,3.6753]
[1725045282030,0.04868338,136.06,136.05,14.9553]
[1725045282430,0.04868338,136.06,136.05,3.6753]
[1725045284132,0.04868338,136.06,136.05,14.9553]
[1725045293650,7.352,136.13,136.08,11.28]
[1725045294348,11.0258,136.11,136.09,3.674]
[1725045294545,11.0764069,136.11,136.09,3.73060444]
[1725045294950,11.0764069,136.11,136.09,0.05660444]
[1725045295643,11.0764069,136.11,136.09,3.73080444]
[1725045295844,11.0764069,136.11,136.09,0.05660444]
[1725045296346,0.0506069,136.11,136.1,3.6739]
[1725045300351,0.0506069,136.11,136.09,0.05660444]
[1725045300744,11.3306069,136.11,136.09,0.05660444]
[1725045300950,3.6739,136.1,136.09,0.05660444]
[1725045301350,18.6826069,136.11,136.09,0.05660444]
[1725045301351,22.3563069,136.11,136.09,0.05660444]
[1725045301657,7.4026069,136.11,136.09,0.05660444]
[1725045301851,0.0506069,136.11,136.1,3.6739]
[1725045302451,0.0506069,136.11,136.09,11.33660444]
[1725045302951,0.0506069,136.11,136.1,11.28]
[1725045303952,0.0506069,136.11,136.1,14.95212753]
[1725045304152,7.352,136.17,136.1,18.62602753]
[1725045304350,7.352,136.15,136.12,11.28]
[1725045304755,3.673,136.14,136.12,11.28]
[1725045305356,3.72611977,136.14,136.12,14.95874375]
[1725045305554,0.05311977,136.14,136.12,14.95874375]
[1725045305859,0.05311977,136.14,136.12,0.04885836]
[1725045306059,3.6731,136.13,136.12,0.04885836]
[1725045309357,18.632,136.13,136.01,1.3852]
[1725045309554,11.28,136.11,136.04,11.28]
[1725045309761,3.6744,136.09,136.05,3.675]
[1725045309956,3.6744,136.09,136.06,11.28]
[1725045310466,3.72769929,136.09,136.06,15.00444723]
[1725045310858,3.6745,136.08,136.06,11.32954723]
[1725045311157,0.05329929,136.09,136.06,11.32954723]
[1725045311158,0.05329929,136.09,136.06,0.04954723]
[1725045311552,3.6746,136.08,136.06,0.04954723]
[1725045312862,3.6746,136.08,136.06,11.32954723]
[1725045313054,3.72759929,136.09,136.06,15.00444723]
[1725045313460,3.72759929,136.09,136.07,11.28]
[1725045313461,0.05329929,136.09,136.07,11.28]
[1725045313850,0.05329929,136.09,136.06,0.04954723]
[1725045313851,0.05329929,136.09,136.06,11.32954723]
[1725045314058,3.6747,136.08,136.06,11.32954723]
[1725045314256,0.05329929,136.09,136.06,0.04954723]
[1725045314860,3.6747,136.07,136.06,0.04954723]
[1725045315256,0.05329929,136.09,136.06,0.04954723]
[1725045315657,3.6746,136.08,136.06,0.04954723]
[1725045315905,0.05329929,136.09,136.06,0.04954723]
[1725045316260,3.6747,136.07,136.06,0.04954723]
[1725045316563,56.4,136.07,135.95,11.28]
[1725045316767,56.4,136.07,135.95,3.6778]
[1725045316768,11.28,136.02,135.95,3.6778]
[1725045316978,11.28,136.0,135.93,3.62617577]
[1725045317165,11.28,136.0,135.93,14.90617577]
[1725045317166,15.00538212,136.0,135.93,14.90617577]
[1725045317360,3.72538212,136.0,135.92,4.0927]
[1725045317557,11.3308297,135.98,135.95,0.05421954]
[1725045317864,18.67992208,135.98,135.95,0.05422735]
[1725045318264,14.9578,135.96,135.95,0.05422735]
[1725045318461,18.67992208,135.98,135.95,0.05422735]
[1725045318679,11.07732208,135.98,135.95,0.05422735]
[1725045319062,7.39992208,135.98,135.95,0.05422735]
[1725045319373,3.6777,135.96,135.95,0.05422735]
[1725045320164,3.6775,135.97,135.95,0.05422735]
[1725045320970,3.6774,135.97,135.95,0.05422735]
[1725045321164,7.39992208,135.98,135.95,0.05422735]
[1725045321365,0.04792208,135.98,135.95,0.05422735]
[1725045322073,3.6776,135.97,135.95,0.05422735]
[1725045323671,0.04792208,135.98,135.95,0.05422735]
[1725045323967,0.04792208,135.98,135.96,11.28]
[1725045324167,0.04792208,135.98,135.95,0.05422735]
[1725045324471,0.04792208,135.98,135.96,3.6777]
[1725045324673,0.04792208,135.98,135.96,14.9577]
[1725045325309,0.04792208,135.98,135.97,3.6774]
[1725045326464,0.04792208,135.98,135.97,14.9574]
[1725045329776,7.352,136.04,135.97,11.28]
[1725045330077,7.352,136.04,136.01,11.28]
[1725045330276,7.352,136.04,136.02,3.6759]
[1725045330581,7.352,136.05,136.01,11.28]
[1725045330782,0.04908716,136.04,136.03,11.28]
[1725045330976,0.04908716,136.04,136.03,14.9558]
[1725045331590,7.40108716,136.04,136.02,3.72678081]
[1725045331886,7.40108716,136.04,136.02,15.00678081]
[1725045332623,7.40108716,136.04,136.03,3.6758]
[1725045333079,7.40108716,136.04,136.02,11.33088081]
[1725045333278,22.30742359,136.04,136.02,0.05088081]
[1725045333985,3.6758,136.03,136.02,0.05088081]
[1725045335278,14.70312359,136.04,136.02,0.05088081]
[1725045335783,11.02742359,136.04,136.02,0.05088081]
[1725045336883,11.07668716,136.04,136.02,0.05088081]
[1725045337886,14.70409,136.04,136.02,0.05088081]
[1725045338184,3.6758,136.03,136.02,0.05088081]
[1725045339176,11.07678716,136.04,136.02,0.05088081]
[1725045341187,14.68711581,136.04,136.02,0.05088081]
[1725045341388,11.07678716,136.04,136.02,0.05088081]
[1725045343188,3.6758,136.03,136.02,0.05088081]
[1725045343688,0.04908716,136.04,136.02,0.05088081]
[1725045343990,11.10247909,136.04,136.02,0.05088081]
[1725045344179,7.40108716,136.04,136.02,0.05088081]
[1725045344384,3.677,135.99,135.96,3.6775]
[1725045344980,40.66721851,136.04,135.94,32.321]
[1725045344981,3.6774,135.97,135.94,32.321]
[1725045345191,28.22,136.02,135.94,32.321]
[1725045345386,0.05084404,135.99,135.97,0.0560579]
[1725045345688,0.05425728,135.99,135.97,0.0560579]
[1725045347287,0.05425728,135.99,135.98,3.6771]
[1725045347482,0.05425728,135.99,135.98,31.8971]
[1725045347883,7.352,136.05,136.01,3.6763]
[1725045348483,7.352,136.04,136.0,31.8965]
[1725045348893,0.04860403,136.03,136.01,0.0555688]
[1725045349493,3.72440403,136.03,136.01,0.0555688]
[1725045350190,3.6761,136.02,136.01,0.0555688]
[1725045351197,0.04860403,136.03,136.01,0.0555688]
[1725045351689,3.72450403,136.03,136.01,0.0555688]
[1725045352493,0.04860403,136.03,136.01,0.0555688]
[1725045354092,0.04860403,136.03,136.02,31.8961]
[1725045356495,3.675,136.06,136.04,3.6754]
[1725045357487,3.72868055,136.06,136.04,3.6754]
[1725045359695,0.05368055,136.06,136.04,28.22]
[1725045361289,0.05368055,136.06,136.05,3.6753]
[1725045362102,1.3865,136.13,136.05,3.6753]
[1725045362103,8.7002,136.15,136.08,3.6744]
[1725045362300,84.91977901,136.16,136.09,28.22]
[1725045362499,3.6729,136.14,136.11,3.6735]
[1725045363000,0.05449911,136.14,136.11,0.04841149]
[1725045363503,0.05449911,136.14,136.11,28.26841149]
[1725045363703,228.0,136.22,136.13,28.22]
[1725045364004,1.351,136.24,136.15,28.22]
[1725045364005,7.352,136.23,136.15,28.22]
[1725045364505,3.6714,136.2,136.16,3.6722]
[1725045364704,0.05197548,136.19,136.17,0.04749617]
[1725045366207,0.05197548,136.19,136.17,3.71949617]
[1725045366426,3.72347548,136.19,136.17,0.04749617]
[1725045366712,0.05197548,136.19,136.17,0.04749617]
[1725045367101,0.05197548,136.19,136.18,28.22]
[1725045367302,0.05197548,136.19,136.18,31.8917]
[1725045367508,0.05197548,136.19,136.17,0.04749617]
[1725045368407,0.05197548,136.19,136.18,31.8917]
[1725045369568,36.9808,136.26,136.18,31.8917]
[1725045369569,8.7721,136.27,136.18,28.22]
[1725045369711,11.00922046,136.26,136.21,28.22]
[1725045370010,3.6709,136.22,136.17,28.22]
[1725045370204,39.29382659,136.26,136.16,3.75559797]
[1725045370402,3.6705,136.23,136.17,28.22]
[1725045370600,0.05084248,136.21,136.2,3.6712]
[1725045370812,0.05473085,136.22,136.19,28.27110365]
[1725045371007,0.05473085,136.22,136.21,28.22]
[1725045371336,0.05473085,136.22,136.21,31.8909]
[1725045375511,11.5069,136.3,136.24,3.6701]
[1725045375704,15.12184421,136.3,136.24,3.6701]
[1725045376110,15.12184421,136.3,136.23,28.22]
[1725045376510,3.72301002,136.28,136.25,0.04756612]
[1725045376710,0.05371002,136.28,136.25,0.04756612]
[1725045376910,3.6696,136.26,136.25,0.04756612]
[1725045377112,28.22,136.26,136.16,1.3325]
[1725045377416,35.572,136.25,136.16,1.3325]
[1725045377611,28.22,136.23,136.14,28.22]
[1725045377814,7.352,136.22,136.15,3.6724]
[1725045378011,3.6714,136.2,136.14,31.92852906]
[1725045378313,0.05140994,136.18,136.16,3.72339872]
[1725045378616,0.05140994,136.18,136.16,0.05119872]
[1725045378820,0.05140994,136.18,136.16,28.27119872]
[1725045379413,0.05140994,136.18,136.17,31.892]
[1725045379919,3.6705,136.23,136.19,3.6713]
[1725045380120,7.352,136.25,136.19,28.22]
[1725045380620,3.6703,136.24,136.2,3.6711]
[1725045380918,3.76326757,136.23,136.21,0.05575201]
[1725045381120,0.04961119,136.23,136.21,0.05575201]
[1725045381918,3.72011119,136.23,136.21,0.05575201]
[1725045382224,0.04961119,136.23,136.21,0.05575201]
[1725045382517,7.352,136.22,136.14,35.23]
[1725045382722,42.582,136.22,136.11,38.96523364]
[1725045383014,3.6723,136.17,136.11,35.23]
[1725045383213,7.352,136.2,136.13,3.6731]
[1725045383621,0.05190628,136.18,136.15,0.05396952]
[1725045384320,3.72380628,136.18,136.15,0.05396952]
[1725045384527,0.05190628,136.18,136.15,3.72626952]
[1725045384720,0.05190628,136.18,136.15,0.05396952]
[1725045385256,0.05190628,136.18,136.17,38.902]
[1725045386420,3.6706,136.23,136.2,3.6712]
[1725045387539,0.04677163,136.23,136.21,3.6709]
[1725045388522,0.04677163,136.23,136.22,3.6707]
[1725045397820,7.352,136.29,136.22,3.6707]
[1725045398019,10.97018448,136.29,136.24,35.23]
[1725045398423,7.352,136.33,136.25,3.6698]
[1725045398619,10.1587,136.33,136.25,3.6698]
[1725045398829,3.6692,136.28,136.25,3.6698]
[1725045399024,3.72253944,136.28,136.25,3.72315648]
[1725045399221,3.72253944,136.28,136.26,3.6696]
[1725045399620,3.72253944,136.28,136.25,0.05335648]
[1725045400031,3.72253944,136.28,136.25,3.72305648]
[1725045400430,3.72253944,136.28,136.25,38.95305648]
[1725045400629,0.05333944,136.28,136.26,3.6695]
[1725045401733,0.05333944,136.28,136.27,3.6693]
[1725045402033,7.39739315,136.31,136.29,3.6688]
[1725045402332,3.6683,136.31,136.29,3.6688]
[1725045402535,3.6676,136.34,136.3,28.18]
[1725045402731,7.352,136.36,136.3,28.18]
[1725045402935,0.05259726,136.34,136.32,0.04645496]
[1725045404430,3.6679,136.33,136.32,0.04645496]
[1725045404737,10.1795404,136.42,136.32,35.27645496]
[1725045404943,1.4316,136.42,136.35,35.23]
[1725045405131,3.6665,136.38,136.33,35.23]
[1725045405527,5.14749385,136.42,136.33,35.23]
[1725045405734,0.05152052,136.39,136.36,0.05355621]
[1725045406160,3.6665,136.38,136.36,0.05355621]
[1725045406336,0.05152052,136.39,136.36,0.05355621]
[1725045407433,0.05152052,136.39,136.36,3.72035621]
[1725045407636,0.05152052,136.39,136.36,0.05355621]
[1725045408242,0.05152052,136.39,136.36,3.72035621]
[1725045408432,0.05152052,136.39,136.36,0.05355621]
[1725045408837,0.05152052,136.39,136.37,35.23]
[1725045409941,0.05152052,136.39,136.38,3.6664]
[1725045410943,0.05152052,136.39,136.37,35.23]
[1725045411635,0.05152052,136.39,136.38,3.6664]
[1725045412142,0.05152052,136.39,136.37,35.23]
[1725045412143,0.05152052,136.39,136.36,0.05355621]
[1725045413343,3.71782052,136.39,136.36,0.05355621]
[1725045414142,0.05152052,136.39,136.36,0.05355621]
[1725045414741,3.6666,136.37,136.36,0.05355621]